fUSD/lending_fUSD_20240804
["ID","MTS","AMOUNT","RATE_DAILY","PERIOD"]
[334142425,1722793865707,-500.0,0.00023095,9]
[334142426,1722793865720,-500.0,0.00023095,9]
[334142427,1722793865731,-500.0,0.00023095,9]
[334142428,1722793865740,-500.0,0.00023095,9]
[334142429,1722793865752,-500.0,0.00023095,9]
[334142430,1722793865766,-500.0,0.00023095,9]
[334142431,1722793865775,-612.53,0.00023095,9]
[334142432,1722793865784,-500.0,0.00023095,9]
[334142433,1722793865794,-575.96,0.00023095,9]
[334142434,1722793865807,-500.0,0.00023095,9]
[334142435,1722793865818,-500.0,0.00023095,9]
[334142436,1722793865827,-500.0,0.00023095,9]
[334142437,1722793865837,-500.0,0.00023095,9]
[334142438,1722793865847,-500.0,0.00023095,9]
[334142439,1722793865857,-500.0,0.00023095,9]
[334142440,1722793865866,-500.0,0.00023095,9]
[334142441,1722793865876,-500.0,0.00023095,9]
[334142442,1722793865885,-500.0,0.00023095,9]
[334142443,1722793865895,-500.0,0.00023095,9]
[334142444,1722793865905,-500.0,0.00023095,9]
[334142445,1722793865915,-500.0,0.00023095,9]
[334142446,1722793865924,-500.0,0.00023095,9]
[334142447,1722793865934,-500.0,0.00023095,9]
[334142448,1722793865943,-500.0,0.00023095,9]
[334142449,1722793865952,-500.0,0.00023095,9]
[334142450,1722793865962,-500.0,0.00023095,9]
[334142451,1722793865971,-1142.38,0.00023095,9]
[334142452,1722793865981,-500.0,0.00023095,9]
[334142453,1722793865990,-500.0,0.00023095,9]
[334142454,1722793865999,-501.03,0.00023095,9]
[334142455,1722793866012,-500.0,0.00023095,9]
[334142456,1722793866022,-500.0,0.00023095,9]
[334142457,1722793866031,-500.0,0.00023095,9]
[334142458,1722793866040,-500.0,0.00023095,9]
[334142459,1722793866049,-500.0,0.00023095,9]
[334142460,1722793866059,-500.0,0.00023095,9]
[334142461,1722793866068,-500.0,0.00023095,9]
[334142462,1722793866078,-569.8,0.00023095,9]
[334142463,1722793866088,-500.0,0.00023095,9]
[334142464,1722793866098,-612.72,0.00023095,9]
[334142465,1722793866107,-500.0,0.00023095,9]
[334142466,1722793866117,-500.0,0.00023095,9]
[334142467,1722793866126,-151.0,0.00023095,7]
[334142468,1722793866135,-151.0,0.00023095,7]
[334142469,1722793866144,-151.0,0.00023095,7]
[334142470,1722793866154,-500.0,0.00023095,9]
[334142471,1722793866163,-500.0,0.00023095,9]
[334142472,1722793866173,-500.0,0.00023095,9]
[334142473,1722793866182,-500.0,0.00023095,9]
[334142474,1722793866192,-500.0,0.00023095,9]
[334142475,1722793866201,-500.0,0.00023095,9]
[334142476,1722793866211,-500.0,0.00023095,9]
[334142477,1722793866220,-500.0,0.00023095,9]
[334142478,1722793866230,-500.0,0.00023095,9]
[334142479,1722793866240,-500.0,0.00023095,9]
[334142480,1722793866249,-500.0,0.00023095,9]
[334142481,1722793866262,-500.0,0.00023095,9]
[334142482,1722793866272,-500.0,0.00023095,9]
[334142483,1722793866281,-500.0,0.00023095,9]
[334142484,1722793866290,-500.0,0.00023095,9]
[334142485,1722793866300,-500.0,0.00023095,9]
[334142486,1722793866309,-500.0,0.00023095,9]
[334142487,1722793866318,-500.0,0.00023095,9]
[334142488,1722793866328,-500.0,0.00023095,9]
[334142489,1722793866337,-500.0,0.00023095,9]
[334142490,1722793866347,-500.0,0.00023095,9]
[334142491,1722793866356,-500.0,0.00023095,9]
[334142492,1722793866367,-500.0,0.00023095,9]
[334142493,1722793866376,-524.1,0.00023095,9]
[334142494,1722793866386,-500.0,0.00023095,9]
[334142495,1722793866395,-500.0,0.00023095,9]
[334142496,1722793866405,-299.1442,0.00023095,7]
[334142497,1722793866414,-517.06,0.00023095,9]
[334142498,1722793866423,-443.26,0.00023095,9]
[334142499,1722793866433,-500.0,0.00023095,9]
[334142500,1722793866442,-500.0,0.00023095,9]
[334142501,1722793866451,-500.0,0.00023095,9]
[334142502,1722793866461,-500.0,0.00023095,9]
[334142503,1722793866470,-171.09,0.00023095,9]
[334142504,1722793866480,-500.0,0.00023095,9]
[334142505,1722793866489,-500.0,0.00023095,9]
[334142506,1722793866498,-500.0,0.00023095,9]
[334142507,1722793866512,-500.0,0.00023095,9]
[334142508,1722793866522,-500.0,0.00023095,9]
[334142509,1722793866531,-500.0,0.00023095,9]
[334142510,1722793866541,-500.0,0.00023095,9]
[334142511,1722793866550,-500.0,0.00023095,9]
[334142512,1722793866560,-238.325386,0.00023095,7]
[334142513,1722793866570,-501.96021965,0.00023095,9]
[334142514,1722793866579,-291.26981981,0.00023095,9]
[334142515,1722793866589,-500.0,0.00023095,9]
[334142516,1722793866598,-500.0,0.00023095,9]
[334142517,1722793866608,-500.0,0.00023095,9]
[334142518,1722793866617,-500.0,0.00023095,9]
[334142519,1722793866627,-500.0,0.00023095,9]
[334142520,1722793866636,-500.0,0.00023095,9]
[334142521,1722793866646,-3137.22,0.00023095,9]
[334142522,1722793866656,-500.0,0.00023095,9]
[334142523,1722793866665,-500.0,0.00023095,9]
[334142524,1722793866675,-502.85598255,0.00023095,9]
[334142525,1722793866685,-500.0,0.00023095,9]
[334142526,1722793866694,-500.0,0.00023095,9]
[334142527,1722793866704,-519.82,0.00023095,9]
[334142528,1722793866713,-500.0,0.00023095,9]
[334142529,1722793866723,-500.0,0.00023095,9]
[334142530,1722793866733,-500.0,0.00023095,9]
[334142531,1722793866746,-500.0,0.00023095,9]
[334142532,1722793866758,-500.0,0.00023095,9]
[334142533,1722793866767,-934.82,0.00023095,9]
[334142534,1722793866776,-500.0,0.00023095,9]
[334142535,1722793866786,-710.9,0.00023095,9]
[334142536,1722793866795,-500.0,0.00023095,9]
[334142537,1722793866804,-500.0,0.00023095,9]
[334142538,1722793866814,-500.97705085,0.00023095,9]
[334142539,1722793866823,-740.84,0.00023095,9]
[334142540,1722793866833,-1014.74,0.00023095,9]
[334142541,1722793866842,-500.0,0.00023095,9]
[334142542,1722793866851,-500.0,0.00023095,9]
[334142543,1722793866860,-500.0,0.00023095,9]
[334142544,1722793866870,-869.51,0.00023095,9]
[334142545,1722793866880,-500.0,0.00023095,9]
[334142546,1722793866889,-500.9848009,0.00023095,9]
[334142547,1722793866899,-1220.26,0.00023095,9]
[334142548,1722793866908,-500.0,0.00023095,9]
[334142549,1722793866917,-747.45,0.00023095,9]
[334142550,1722793866927,-500.0,0.00023095,9]
[334142551,1722793866936,-500.0,0.00023095,9]
[334142552,1722793866946,-500.0,0.00023095,9]
[334142553,1722793866955,-500.0,0.00023095,9]
[334142554,1722793866965,-500.0,0.00023095,9]
[334142555,1722793866975,-502.5,0.00023095,9]
[334142556,1722793866984,-1426.35,0.00023095,9]
[334142557,1722793866993,-500.0,0.00023095,9]
[334142558,1722793867005,-500.0,0.00023095,9]
[334142559,1722793867015,-797.06,0.00023095,9]
[334142560,1722793867025,-500.91097307,0.00023095,9]
[334142561,1722793867034,-500.0,0.00023095,9]
[334142562,1722793867044,-500.0,0.00023095,9]
[334142563,1722793867053,-1995.81,0.00023095,9]
[334142564,1722793867063,-790.91,0.00023095,9]
[334142565,1722793867073,-577.2,0.00023095,9]
[334142566,1722793867083,-2161.39,0.00023095,9]
[334142567,1722793867092,-500.87896452,0.00023095,9]
[334142568,1722793867102,-500.0,0.00023095,9]
[334142569,1722793867111,-151.0,0.00023095,7]
[334142570,1722793867121,-500.0,0.00023095,9]
[334142571,1722793867131,-151.0,0.00023095,7]
[334142572,1722793867140,-500.0,0.00023095,9]
[334142573,1722793867150,-500.0,0.00023095,9]
[334142574,1722793867159,-500.0,0.00023095,9]
[334142575,1722793867168,-1425.17,0.00023095,9]
[334142576,1722793867178,-500.0,0.00023095,9]
[334142577,1722793867187,-669.39704,0.00023095,7]
[334142578,1722793867197,-500.0,0.00023095,9]
[334142579,1722793867207,-669.39704,0.00023095,7]
[334142580,1722793867217,-883.25,0.00023095,9]
[334142581,1722793867227,-913.58,0.00023095,9]
[334142582,1722793867236,-500.0,0.00023095,9]
[334142583,1722793867246,-1374.85,0.00023095,9]
[334142584,1722793867258,-500.0,0.00023095,9]
[334142585,1722793867267,-669.39704,0.00023095,7]
[334142586,1722793867276,-669.39704,0.00023095,7]
[334142587,1722793867286,-500.0,0.00023095,9]
[334142588,1722793867295,-3151.84,0.00023095,9]
[334142589,1722793867305,-544.21,0.00023095,9]
[334142590,1722793867314,-534.58,0.00023095,9]
[334142591,1722793867323,-500.0,0.00023095,9]
[334142592,1722793867333,-500.0,0.00023095,9]
[334142593,1722793867342,-500.0,0.00023095,9]
[334142594,1722793867351,-500.90964192,0.00023095,9]
[334142595,1722793867362,-500.0,0.00023095,9]
[334142596,1722793867371,-500.0,0.00023095,9]
[334142597,1722793867380,-815.35,0.00023095,9]
[334142598,1722793867390,-1150.48,0.00023095,9]
[334142599,1722793867399,-500.0,0.00023095,9]
[334142600,1722793867408,-805.83,0.00023095,9]
[334142601,1722793867417,-500.0,0.00023095,9]
[334142602,1722793867427,-500.0,0.00023095,9]
[334142603,1722793867437,-500.0,0.00023095,9]
[334142604,1722793867446,-277.06,0.00023095,9]
[334142605,1722793867456,-500.0,0.00023095,9]
[334142606,1722793867465,-500.0,0.00023095,9]
[334142607,1722793867475,-1085.44,0.00023095,9]
[334142608,1722793867485,-500.0,0.00023095,9]
[334142609,1722793867494,-500.0,0.00023095,9]
[334142610,1722793867505,-500.0,0.00023095,9]
[334142611,1722793867515,-843.61,0.00023095,9]
[334142612,1722793867524,-500.0,0.00023095,9]
[334142613,1722793867533,-500.88219054,0.00023095,9]
[334142614,1722793867543,-500.0,0.00023095,9]
[334142615,1722793867552,-399.93,0.00023095,9]
[334142616,1722793867562,-500.0,0.00023095,9]
[334142617,1722793867571,-500.0,0.00023095,9]
[334142618,1722793867581,-1087.61,0.00023095,9]
[334142619,1722793867590,-9890.12,0.00023095,9]
[334142620,1722793867599,-500.0,0.00023095,9]
[334142621,1722793867609,-500.0,0.00023095,9]
[334142622,1722793867618,-500.0,0.00023095,9]
[334142623,1722793867629,-2686.87,0.00023095,9]
[334142624,1722793867638,-500.85506161,0.00023095,9]
[334142625,1722793867647,-500.0,0.00023095,9]
[334142626,1722793867657,-500.0,0.00023095,9]
[334142627,1722793867667,-943.34,0.00023095,9]
[334142628,1722793867676,-13841.3,0.00023095,9]
[334142629,1722793867687,-500.0,0.00023095,9]
[334142630,1722793867696,-500.0,0.00023095,9]
[334142631,1722793867705,-500.0,0.00023095,9]
[334142632,1722793867716,-4946.99,0.00023095,9]
[334142633,1722793867725,-500.0,0.00023095,9]
[334142634,1722793867735,-500.0,0.00023095,9]
[334142635,1722793867746,-500.0,0.00023095,9]
[334142636,1722793867758,-500.0,0.00023095,9]
[334142637,1722793867768,-500.0,0.00023095,9]
[334142638,1722793867777,-1685.99,0.00023095,9]
[334142639,1722793867786,-500.0,0.00023095,9]
[334142640,1722793867795,-369.37155141,0.00023095,9]
[334142641,1722793867805,-533.9,0.00023095,9]
[334142642,1722793867817,-500.0,0.00023095,9]
[334142643,1722793867827,-500.0,0.00023095,9]
[334142644,1722793867837,-500.0,0.00023095,9]
[334142645,1722793867846,-1139.5,0.00023095,9]
[334142646,1722793867856,-1049.8,0.00023095,9]
[334142647,1722793867865,-500.0,0.00023095,9]
[334142648,1722793867875,-2297.65,0.00023095,9]
[334142649,1722793867885,-547.39,0.00023095,9]
[334142650,1722793867894,-151.0,0.00023095,7]
[334142651,1722793867904,-500.0,0.00023095,9]
[334142652,1722793867913,-151.0,0.00023095,7]
[334142653,1722793867922,-500.0,0.00023095,9]
[334142654,1722793867933,-500.0,0.00023095,9]
[334142655,1722793867943,-521.7,0.00023095,9]
[334142656,1722793867953,-500.0,0.00023095,9]
[334142657,1722793867962,-500.73430048,0.00023095,9]
[334142658,1722793867972,-500.0,0.00023095,9]
[334142659,1722793867981,-500.0,0.00023095,9]
[334142660,1722793867991,-923.98,0.00023095,9]
[334142661,1722793868000,-500.0,0.00023095,9]
[334142662,1722793868017,-500.0,0.00023095,9]
[334142663,1722793868027,-500.0,0.00023095,9]
[334142664,1722793868036,-459.4,0.00023095,9]
[334142665,1722793868045,-2224.47,0.00023095,9]
[334142666,1722793868055,-500.0,0.00023095,9]
[334142667,1722793868064,-838.61,0.00023095,9]
[334142668,1722793868073,-500.0,0.00023095,9]
[334142669,1722793868083,-709.32,0.00023095,9]
[334142670,1722793868091,-594.66,0.00023095,9]
[334142671,1722793868100,-500.0,0.00023095,9]
[334142672,1722793868109,-500.0,0.00023095,9]
[334142673,1722793868119,-4890.24,0.00023095,9]
[334142674,1722793868129,-500.0,0.00023095,9]
[334142675,1722793868138,-500.0,0.00023095,9]
[334142676,1722793868148,-500.0,0.00023095,9]
[334142677,1722793868157,-500.0,0.00023095,9]
[334142678,1722793868166,-500.0,0.00023095,9]
[334142679,1722793868176,-3521.04,0.00023095,9]
[334142680,1722793868186,-500.0,0.00023095,9]
[334142681,1722793868196,-500.0,0.00023095,9]
[334142682,1722793868205,-1024.15,0.00023095,9]
[334142683,1722793868214,-500.0,0.00023095,9]
[334142684,1722793868223,-3911.91,0.00023095,9]
[334142685,1722793868233,-500.0,0.00023095,9]
[334142686,1722793868242,-953.36,0.00023095,9]
[334142687,1722793868252,-500.0,0.00023095,9]
[334142688,1722793868269,-500.0,0.00023095,9]
[334142689,1722793868279,-451.137247,0.00023095,7]
[334142690,1722793868289,-500.0,0.00023095,9]
[334142691,1722793868299,-451.137247,0.00023095,7]
[334142692,1722793868309,-500.0,0.00023095,9]
[334142693,1722793868319,-500.0,0.00023095,9]
[334142694,1722793868329,-577.32,0.00023095,9]
[334142695,1722793868338,-500.0,0.00023095,9]
[334142696,1722793868348,-675.42,0.00023095,9]
[334142697,1722793868358,-921.33,0.00023095,9]
[334142698,1722793868368,-500.0,0.00023095,9]
[334142699,1722793868378,-451.137247,0.00023095,7]
[334142700,1722793868388,-500.0,0.00023095,9]
[334142701,1722793868399,-451.137247,0.00023095,7]
[334142702,1722793868409,-500.0,0.00023095,9]
[334142703,1722793868419,-639.19,0.00023095,9]
[334142704,1722793868428,-500.0,0.00023095,9]
[334142705,1722793868439,-1236.09,0.00023095,9]
[334142706,1722793868449,-501.58960127,0.00023095,9]
[334142707,1722793868459,-500.0,0.00023095,9]
[334142708,1722793868469,-710.3,0.00023095,9]
[334142709,1722793868479,-6142.0,0.00023095,9]
[334142710,1722793868488,-500.0,0.00023095,9]
[334142711,1722793868498,-500.0,0.00023095,9]
[334142712,1722793868513,-500.0,0.00023095,9]
[334142713,1722793868522,-2208.74,0.00023095,9]
[334142714,1722793868532,-5250.57,0.00023095,9]
[334142715,1722793868542,-1009.7,0.00023095,9]
[334142716,1722793868552,-500.0,0.00023095,9]
[334142717,1722793868562,-500.0,0.00023095,9]
[334142718,1722793868572,-2952.8,0.00023095,9]
[334142719,1722793868582,-500.0,0.00023095,9]
[334142720,1722793868592,-500.0,0.00023095,9]
[334142721,1722793868602,-500.0,0.00023095,9]
[334142722,1722793868612,-1542.72,0.00023095,9]
[334142723,1722793868622,-523.82,0.00023095,9]
[334142724,1722793868633,-500.0,0.00023095,9]
[334142725,1722793868643,-500.0,0.00023095,9]
[334142726,1722793868653,-865.21,0.00023095,9]
[334142727,1722793868663,-501.35712346,0.00023095,2]
[334142728,1722793868673,-500.0,0.00023095,9]
[334142729,1722793868684,-606.97,0.00023095,9]
[334142730,1722793868695,-500.0,0.00023095,9]
[334142731,1722793868706,-824.46,0.00023095,9]
[334142732,1722793868718,-500.0,0.00023095,9]
[334142733,1722793868731,-889.6,0.00023095,9]
[334142734,1722793868742,-810.16,0.00023095,9]
[334142735,1722793868752,-686.39,0.00023095,9]
[334142736,1722793868771,-501.56353358,0.00023095,9]
[334142737,1722793868781,-1494.14,0.00023095,9]
[334142738,1722793868792,-1177.55,0.00023095,9]
[334142739,1722793868803,-500.0,0.00023095,9]
[334142740,1722793868814,-723.47,0.00023095,9]
[334142741,1722793868824,-500.0,0.00023095,9]
[334142742,1722793868835,-151.0,0.00023095,7]
[334142743,1722793868845,-151.0,0.00023095,7]
[334142744,1722793868855,-214.768247,0.00023095,7]
[334142745,1722793868865,-214.768247,0.00023095,7]
[334142746,1722793868876,-634.65,0.00023095,9]
[334142747,1722793868886,-8055.55,0.00023095,9]
[334142748,1722793868896,-815.5,0.00023095,9]
[334142749,1722793868906,-500.0,0.00023095,9]
[334142750,1722793868916,-500.0,0.00023095,9]
[334142751,1722793868926,-500.0,0.00023095,9]
[334142752,1722793868936,-500.0,0.00023095,9]
[334142753,1722793868946,-500.0,0.00023095,9]
[334142754,1722793868956,-214.768247,0.00023095,7]
[334142755,1722793868966,-500.0,0.00023095,9]
[334142756,1722793868976,-1680.09,0.00023095,9]
[334142757,1722793868987,-214.768247,0.00023095,7]
[334142758,1722793868996,-552.75,0.00023095,9]
[334142759,1722793869011,-539.85,0.00023095,9]
[334142760,1722793869021,-522.62,0.00023095,9]
[334142761,1722793869031,-500.0,0.00023095,9]
[334142762,1722793869040,-530.04,0.00023095,9]
[334142763,1722793869050,-500.0,0.00023095,9]
[334142764,1722793869060,-500.0,0.00023095,9]
[334142765,1722793869071,-500.0,0.00023095,9]
[334142766,1722793869081,-702.68,0.00023095,9]
[334142767,1722793869091,-500.0,0.00023095,9]
[334142768,1722793869101,-1066.04,0.00023095,9]
[334142769,1722793869112,-500.0,0.00023095,9]
[334142770,1722793869122,-591.76,0.00023095,9]
[334142771,1722793869132,-800.55,0.00023095,9]
[334142772,1722793869142,-500.0,0.00023095,9]
[334142773,1722793869151,-500.0,0.00023095,9]
[334142774,1722793869161,-909.99,0.00023095,9]
[334142775,1722793869171,-200.0,0.00023095,7]
[334142776,1722793869182,-500.0,0.00023095,9]
[334142777,1722793869191,-500.0,0.00023095,9]
[334142778,1722793869201,-500.0,0.00023095,9]
[334142779,1722793869211,-500.0,0.00023095,9]
[334142780,1722793869220,-500.0,0.00023095,9]
[334142781,1722793869230,-720.81,0.00023095,9]
[334142782,1722793869240,-500.0,0.00023095,9]
[334142783,1722793869250,-500.0,0.00023095,9]
[334142784,1722793869267,-500.0,0.00023095,9]
[334142785,1722793869277,-1192.14,0.00023095,9]
[334142786,1722793869287,-1148.81,0.00023095,9]
[334142787,1722793869296,-500.0,0.00023095,9]
[334142788,1722793869306,-500.0,0.00023095,9]
[334142789,1722793869315,-502.66,0.00023095,9]
[334142790,1722793869325,-820.9,0.00023095,9]
[334142791,1722793869335,-518.02,0.00023095,9]
[334142792,1722793869345,-3642.15,0.00023095,9]
[334142793,1722793869355,-500.0,0.00023095,9]
[334142794,1722793869364,-500.0,0.00023095,9]
[334142795,1722793869374,-946.55,0.00023095,9]
[334142796,1722793869384,-500.0,0.00023095,9]
[334142797,1722793869394,-500.0,0.00023095,9]
[334142798,1722793869404,-500.0,0.00023095,9]
[334142799,1722793869413,-528.95,0.00023095,9]
[334142800,1722793869423,-1603.91,0.00023095,9]
[334142801,1722793869432,-500.0,0.00023095,9]
[334142802,1722793869441,-500.0,0.00023095,9]
[334142803,1722793869451,-1805.42,0.00023095,9]
[334142804,1722793869461,-500.0,0.00023095,9]
[334142805,1722793869470,-2125.37,0.00023095,9]
[334142806,1722793869480,-500.0,0.00023095,9]
[334142807,1722793869490,-829.66,0.00023095,9]
[334142808,1722793869499,-874.1,0.00023095,9]
[334142809,1722793869512,-500.0,0.00023095,9]
[334142810,1722793869522,-500.0,0.00023095,9]
[334142811,1722793869532,-1176.16,0.00023095,9]
[334142812,1722793869541,-500.0,0.00023095,9]
[334142813,1722793869551,-500.0,0.00023095,9]
[334142814,1722793869561,-500.0,0.00023095,9]
[334142815,1722793869571,-789.04,0.00023095,9]
[334142816,1722793869581,-500.0,0.00023095,9]
[334142817,1722793869591,-500.0,0.00023095,9]
[334142818,1722793869601,-500.0,0.00023095,9]
[334142819,1722793869611,-500.0,0.00023095,9]
[334142820,1722793869621,-1150.29,0.00023095,9]
[334142821,1722793869630,-1178.44,0.00023095,9]
[334142822,1722793869641,-1074.2,0.00023095,9]
[334142823,1722793869651,-500.0,0.00023095,9]
[334142824,1722793869661,-500.0,0.00023095,9]
[334142825,1722793869672,-500.0,0.00023095,9]
[334142826,1722793869682,-583.23,0.00023095,9]
[334142827,1722793869692,-500.0,0.00023095,9]
[334142828,1722793869702,-2682.29,0.00023095,9]
[334142829,1722793869712,-4128.36,0.00023095,9]
[334142830,1722793869723,-500.0,0.00023095,9]
[334142831,1722793869733,-986.96,0.00023095,9]
[334142832,1722793869747,-654.0,0.00023095,9]
[334142833,1722793869760,-500.0,0.00023095,9]
[334142834,1722793869770,-625.66,0.00023095,9]
[334142835,1722793869780,-500.0,0.00023095,9]
[334142836,1722793869789,-572.4,0.00023095,9]
[334142837,1722793869800,-500.0,0.00023095,9]
[334142838,1722793869810,-663.93,0.00023095,9]
[334142839,1722793869821,-1047.34,0.00023095,9]
[334142840,1722793869832,-500.0,0.00023095,9]
[334142841,1722793869842,-500.0,0.00023095,9]
[334142842,1722793869852,-500.0,0.00023095,9]
[334142843,1722793869861,-2555.28,0.00023095,9]
[334142844,1722793869871,-500.0,0.00023095,9]
[334142845,1722793869881,-559.65,0.00023095,9]
[334142846,1722793869890,-1353.29,0.00023095,9]
[334142847,1722793869900,-500.0,0.00023095,9]
[334142848,1722793869910,-620.84,0.00023095,9]
[334142849,1722793869920,-1214.04,0.00023095,9]
[334142850,1722793869930,-500.0,0.00023095,9]
[334142851,1722793869939,-525.45158624,0.00023095,9]
[334142852,1722793869949,-500.0,0.00023095,9]
[334142853,1722793869959,-404.80470169,0.00023095,9]
[334142854,1722793869968,-500.0,0.00023095,9]
[334142855,1722793869978,-1467.96,0.00023095,9]
[334142856,1722793869988,-825.95,0.00023095,9]
[334142857,1722793869998,-500.0,0.00023095,9]
[334142858,1722793870011,-500.0,0.00023095,9]
[334142859,1722793870020,-793.93,0.00023095,9]
[334142860,1722793870030,-274.02881294,0.00023095,9]
[334142861,1722793870040,-500.0,0.00023095,9]
[334142862,1722793870050,-500.0,0.00023095,9]
[334142863,1722793870060,-500.0,0.00023095,9]
[334142864,1722793870070,-500.0,0.00023095,9]
[334142865,1722793870080,-500.0,0.00023095,9]
[334142866,1722793870090,-500.0,0.00023095,9]
[334142867,1722793870101,-500.0,0.00023095,9]
[334142868,1722793870111,-1434.28,0.00023095,9]
[334142869,1722793870121,-1102.08,0.00023095,9]
[334142870,1722793870131,-500.0,0.00023095,9]
[334142871,1722793870141,-830.67,0.00023095,9]
[334142872,1722793870151,-837.82,0.00023095,9]
[334142873,1722793870161,-1054.27,0.00023095,9]
[334142874,1722793870171,-500.0,0.00023095,9]
[334142875,1722793870182,-771.44,0.00023095,9]
[334142876,1722793870192,-703.02,0.00023095,9]
[334142877,1722793870202,-500.0,0.00023095,9]
[334142878,1722793870213,-1468.65,0.00023095,9]
[334142879,1722793870224,-500.0,0.00023095,9]
[334142880,1722793870235,-592.73,0.00023095,9]
[334142881,1722793870245,-500.0,0.00023095,9]
[334142882,1722793870258,-1140.89,0.00023095,9]
[334142883,1722793870272,-500.0,0.00023095,9]
[334142884,1722793870282,-244.35453813,0.00023095,9]
[334142885,1722793870293,-500.0,0.00023095,9]
[334142886,1722793870303,-2157.01,0.00023095,9]
[334142887,1722793870313,-500.0,0.00023095,9]
[334142888,1722793870324,-500.0,0.00023095,9]
[334142889,1722793870334,-972.42,0.00023095,9]
[334142890,1722793870344,-1517.51,0.00023095,9]
[334142891,1722793870356,-500.0,0.00023095,9]
[334142892,1722793870367,-500.0,0.00023095,9]
[334142893,1722793870378,-1516.1,0.00023095,9]
[334142894,1722793870391,-500.0,0.00023095,9]
[334142895,1722793870401,-151.0,0.00023095,7]
[334142896,1722793870412,-500.0,0.00023095,9]
[334142897,1722793870423,-1017.16,0.00023095,9]
[334142898,1722793870433,-151.0,0.00023095,7]
[334142899,1722793870444,-500.0,0.00023095,9]
[334142900,1722793870457,-1138.68,0.00023095,9]
[334142901,1722793870468,-1278.49,0.00023095,9]
[334142902,1722793870479,-545.49,0.00023095,9]
[334142903,1722793870490,-500.0,0.00023095,9]
[334142904,1722793870501,-927.93,0.00023095,9]
[334142905,1722793870776,-895.15,0.00023095,9]
[334142906,1722793870785,-830.33,0.00023095,9]
[334142907,1722793870795,-151.0,0.00023095,7]
[334142908,1722793870807,-500.0,0.00023095,9]
[334142909,1722793870817,-151.0,0.00023095,7]
[334142910,1722793870826,-500.0,0.00023095,9]
[334142911,1722793870835,-500.0,0.00023095,9]
[334142912,1722793870845,-500.0,0.00023095,9]
[334142913,1722793870854,-640.10317953,0.00023095,9]
[334142914,1722793870864,-1102.09,0.00023095,9]
[334142915,1722793870873,-898.46,0.00023095,9]
[334142916,1722793870882,-500.0,0.00023095,9]
[334142917,1722793870891,-1000.0,0.00023095,9]
[334142918,1722793870902,-727.31,0.00023095,9]
[334142919,1722793870911,-2271.81,0.00023095,9]
[334142920,1722793870921,-500.0,0.00023095,9]
[334142921,1722793870930,-366.13785784,0.00023095,9]
[334142922,1722793870939,-758.35,0.00023095,9]
[334142923,1722793870949,-500.0,0.00023095,9]
[334142924,1722793870959,-500.0,0.00023095,9]